Workbook

Sheet Beregner
B1: For privatkunder og ikke-timeafregnede erhvervskunder: beregn tarifbetalingen til Evida
B3: Indtastning | H3: Sådan gør du
B4: Forventet årligt forbrug (m3): | C4: 1600 | E4: Forbruget skal være mellem 0 og 500.000 m3 | H4: Indtast din målerstørrelse. Din målerstørrelse kan findes på dit varslingsbrev.
B5: Målerstørrelse* | C5: G4 | E5: Målerstørrelse ikke fundet. Du kan finde din målerstørrelse på dit varslingsbrev | H5: Er du privatkunde, vil din målerstørrelse som oftest fremgå som G1,6, G2,5 eller G4.
B6: *Er du privatkunde, vil din målerstørrelse som oftest fremgå som G1,6; G2,5 eller G4. | H6: Indtast dit forventede årsforbrug.
H7: Du finder det forventede årsforbrug på dit varslingsbrev eller den seneste regning fra Evida.
C8: Regning fra Evida med nye tariffer | H8: Vær opmærksom på, at dit forventede årsforbrug bliver beregnet på ny hvert kvartal,
B9: Årlig forventet tarifbetaling: | C9: Ekskl. moms | E9: Inkl. moms | H9: når du har afleveret en aflæsning til Evida. Dit forventede årsforbrug kan altså ændre
B10: Målerbetaling | C10: =+IFERROR(_xlfn.XLOOKUP(C5,Bilag!X:X,Bilag!AB:AB,)*Bilag!D13*Bilag!D4, ) -> 339.6073566 | E10: =+C10*1.25 -> 424.5091958 | H10: sig i løbet af året.
B11: Volumentarif | C11: =+IFERROR(C4*Bilag!C13*Bilag!D4, ) -> 214.9532517 | E11: =+C11*1.25 -> 268.6915646
B12: Systemtarif | C12: =+IFERROR(Bilag!E13+_xlfn.XLOOKUP(C5,Bilag!X:X,Bilag!AA:AA,)*Bilag!F13, )*Bilag!D4 -> 1301.541561 | E12: =+C12*1.25 -> 1626.926951
B14: I alt: | C14: =SUM(C10:C12)*Bilag!D4 -> 1856.102169 | E14: =SUM(E10:E12)*Bilag!D4 -> 2320.127711
B16: Årlig forventet afgifter til staten: | H16: Vigtigt at vide
B17: Nødforsyningstarif (Energinet): | C17: =+IFERROR(C4*Bilag!J13*Bilag!D4,0) -> 57.376 | E17: =+C17*1.25 -> 71.72 | H17: Beregningen er KUN vejledende.
B18: Naturgasafgift | C18: =+IFERROR(C4*Bilag!G13*Bilag!D4,0) -> 4361.6 | E18: =+C18*1.25 -> 5452 | H18: Tarifferne er gældende pr. 1. januar 2025, og dermed er beregningen kun gældende,
B19: CO2-afgift | C19: =+IFERROR(C4*Bilag!H13*Bilag!D4,0) -> 707.2 | E19: =+C19*1.25 -> 884 | H19: indtil priserne evt. ændrer sig.
B20: NOx-afgift | C20: =+IFERROR(C4*Bilag!I13*Bilag!D4,0) -> 14.4 | E20: 18 | H20: Afgifter til staten er satserne for 2024, som kan ændre sig i 2025 og dermed påvirke din regning.
H21: Beregneren kan kun benyttes af privatkunder og erhvervskunder, som ikke er timeafregnede.
B22: I alt tarifbetaling og afgifter: | C22: =+SUM(C14:C20)*Bilag!D4 -> 6996.678169 | E22: =+SUM(E14:E20) -> 8745.847711 | H22: Er du producent eller timeafregnet erhvervskunde, kan du altså ikke benytte beregneren.

Sheet Bilag (hidden)
B2: Forbrug i interval 0-20000 | C2: Fejl 0/1 | D2: =+IF(AND(Beregner!C4>=0,Beregner!C4<=500000),1,0)*COUNT(Beregner!C4) -> 1
B3: Målerstørrelse | C3: Fejl 0/1 | D3: =+_xlfn.XLOOKUP(Beregner!C5,Bilag!X4:X22,Bilag!W4:W22,0) -> 1 | X3: Målertype | Y3: Max | Z3: Enhed | AA3: Kapacitetsvægtning | AB3: Målervægte
C4: Fejl 0/1 | D4: =+IF(AND(Beregner!C4>=0,Beregner!C4<=500000),1,0)*_xlfn.XLOOKUP(Beregner!C5,Bilag!X4:X22,Bilag!W4:W22,0) -> 1 | W4: 1 | X4: G1,6 | Y4: 2.5 | Z4: m³ | AA4: 4.5 | AB4: 1
W5: 1 | X5: G2,5 | Y5: 4 | Z5: m³ | AA5: 4.5 | AB5: 1
W6: 1 | X6: G4 | Y6: 6 | Z6: m³ | AA6: 4.5 | AB6: 1
W7: 1 | X7: G6 | Y7: 10 | Z7: m³ | AA7: 7.5 | AB7: 1.036454806
W8: 1 | X8: G10 | Y8: 16 | Z8: m³ | AA8: 12 | AB8: 1.541414374
W9: 1 | X9: G16 | Y9: 25 | Z9: m³ | AA9: 18.75 | AB9: 1.558132928
W10: 1 | X10: G25 | Y10: 40 | Z10: m³ | AA10: 30 | AB10: 1.854466037
W11: 1 | X11: G40 | Y11: 100 | Z11: m³ | AA11: 75 | AB11: 8.138980279
C12: Volumentarif | D12: Måler- og Administrationsgebyr | E12: Grundpris | F12: Kapacitetstarif | G12: Naturgasafgift | H12: CO2-afgift | I12: NOx-afgift | J12: Nødforsyningstarif til Energinet | W12: 1 | X12: G65 | Y12: 100 | Z12: m³ | AA12: 75 | AB12: 8.138980279
B13: Evida | C13: 0.1343457823 | D13: 339.6073566 | E13: 766.7135779 | F13: 118.8506629 | G13: 2.726 | H13: 0.442 | I13: 0.009 | J13: 0.03586 | W13: 1 | X13: G100 | Y13: 160 | Z13: m³ | AA13: 120 | AB13: 9.676159477
W14: 1 | X14: G160 | Y14: 250 | Z14: m³ | AA14: 187.5 | AB14: 15.79445447
W15: 1 | X15: G250 | Y15: 400 | Z15: m³ | AA15: 300 | AB15: 20.64766624
W16: 1 | X16: G400 | Y16: 650 | Z16: m³ | AA16: 487.5 | AB16: 26.96407661
W17: 1 | X17: G650 | Y17: 1000 | Z17: m³ | AA17: 750 | AB17: 26.96407661
W18: 1 | X18: G1000 | Y18: 1600 | Z18: m³ | AA18: 1200 | AB18: 29.44541077
W19: 1 | X19: G1600 | Y19: 2500 | Z19: m³ | AA19: 1875 | AB19: 39.64481682
W20: 1 | X20: G2500 | Y20: 4000 | Z20: m³ | AA20: 3000 | AB20: 54.50108314
W21: 1 | X21: G4000 | Y21: 6500 | Z21: m³ | AA21: 4875 | AB21: 54.50108314
W22: 1 | X22: G6500 | Y22: 10000 | Z22: m³ | AA22: 7500 | AB22: 54.50108314
